[Event "Titled Tuesday Blitz July 25 Late 2023"]
[White "Sztokbant, Bernardo Vainzoff"]
[Black "Krishnan, Varun"]
[WhiteFideId "2115956"]
[BlackFideId "5054508"]
[WhiteElo "2428"]
[BlackElo "2580"]
[Result "1-0"]
[Round "6"]
[TimeControl "180+2"]
[Date "2023.07.25"]
[WhiteClock "0:00:20"]
[BlackClock "0:00:02"]
[Board "86"]

1. e4 {[%clk 0:02:59]}  c5 {[%clk 0:02:56]} 2. Nf3 {[%clk 0:02:59]}  a6 {[%clk 0:02:57]} 3. c3 {[%clk 0:02:59]}  e6 {[%clk 0:02:57]} 4. d4 {[%clk 0:02:59]}  d5 {[%clk 0:02:56]} 5. exd5 {[%clk 0:02:59]}  exd5 {[%clk 0:02:55]} 6. Be2 {[%clk 0:02:56]}  Nf6 {[%clk 0:02:55]} 7. O-O {[%clk 0:02:56]}  cxd4 {[%clk 0:02:48]} 8. cxd4 {[%clk 0:02:56]}  Nc6 {[%clk 0:02:48]} 9. Nc3 {[%clk 0:02:56]}  Be7 {[%clk 0:02:48]} 10. Bf4 {[%clk 0:02:54]}  O-O {[%clk 0:02:48]} 11. Re1 {[%clk 0:02:54]}  Bf5 {[%clk 0:02:44]} 12. Ne5 {[%clk 0:02:52]}  Ne4 {[%clk 0:02:41]} 13. Bf3 {[%clk 0:02:45]}  Nxe5 {[%clk 0:02:35]} 14. Bxe5 {[%clk 0:02:43]}  Nxc3 {[%clk 0:02:28]} 15. bxc3 {[%clk 0:02:44]}  Qa5 {[%clk 0:02:28]} 16. Bxg7 {[%clk 0:02:31]}  Kxg7 {[%clk 0:02:27]} 17. Rxe7 {[%clk 0:02:31]}  Qxc3 {[%clk 0:02:27]} 18. Rxb7 {[%clk 0:02:12]}  Rab8 {[%clk 0:02:20]} 19. Rxb8 {[%clk 0:02:03]}  Rxb8 {[%clk 0:02:19]} 20. Bxd5 {[%clk 0:01:53]}  Rb2 {[%clk 0:02:09]} 21. h3 {[%clk 0:01:24]}  Rd2 {[%clk 0:02:06]} 22. Qe1 {[%clk 0:01:22]}  Qxd4 {[%clk 0:02:03]} 23. Bf3 {[%clk 0:01:17]}  Rxf2 {[%clk 0:01:57]} 24. Qxf2 {[%clk 0:01:17]}  Qxa1+ {[%clk 0:01:57]} 25. Kh2 {[%clk 0:01:17]}  Qe5+ {[%clk 0:01:56]} 26. Qg3+ {[%clk 0:01:12]}  Kf6 {[%clk 0:01:55]} 27. Qxe5+ {[%clk 0:01:01]}  Kxe5 {[%clk 0:01:56]} 28. Kg3 {[%clk 0:01:02]}  Be6 {[%clk 0:01:52]} 29. a3 {[%clk 0:01:00]}  Kd4 {[%clk 0:01:52]} 30. Kf4 {[%clk 0:00:58]}  h6 {[%clk 0:01:28]} 31. Bc6 {[%clk 0:00:51]}  a5 {[%clk 0:01:15]} 32. Be8 {[%clk 0:00:50]}  Kc3 {[%clk 0:01:05]} 33. Ke5 {[%clk 0:00:50]}  Bb3 {[%clk 0:00:38]} 34. Kf6 {[%clk 0:00:45]}  Kb2 {[%clk 0:00:28]} 35. a4 {[%clk 0:00:45]}  Ka3 {[%clk 0:00:28]} 36. g4 {[%clk 0:00:35]}  Kb4 {[%clk 0:00:20]} 37. Kg7 {[%clk 0:00:31]}  Bxa4 {[%clk 0:00:19]} 38. Bxf7 {[%clk 0:00:31]}  Bb3 {[%clk 0:00:19]} 39. Be8 {[%clk 0:00:30]}  a4 {[%clk 0:00:10]} 40. Bxa4 {[%clk 0:00:28]}  Kxa4 {[%clk 0:00:08]} 41. Kxh6 {[%clk 0:00:26]}  Kb5 {[%clk 0:00:08]} 42. Kg7 {[%clk 0:00:22]}  Kc5 {[%clk 0:00:08]} 43. g5 {[%clk 0:00:22]}  Kd6 {[%clk 0:00:07]} 44. h4 {[%clk 0:00:22]}  Ke7 {[%clk 0:00:06]} 45. h5 {[%clk 0:00:23]}  Bc2 {[%clk 0:00:05]} 46. h6 {[%clk 0:00:21]}  Ke6 {[%clk 0:00:02]} 47. h7 {[%clk 0:00:20]} 1-0


[Site "https://www.chess.com"]

[Event "Titled Tuesday Blitz July 25 Late 2023"]
[White "Ambartsumova, Karina"]
[Black "Herman, Daniel"]
[WhiteFideId "4166299"]
[BlackFideId "30935008"]
[WhiteElo "2554"]
[BlackElo "2415"]
[Result "1-0"]
[Round "6"]
[TimeControl "180+2"]
[Date "2023.07.25"]
[WhiteClock "0:00:13"]
[BlackClock "0:00:00"]
[Board "88"]

1. e4 {[%clk 0:03:00]}  Nc6 {[%clk 0:02:56]} 2. Nf3 {[%clk 0:02:58]}  d6 {[%clk 0:02:55]} 3. d4 {[%clk 0:02:57]}  g6 {[%clk 0:02:55]} 4. Nc3 {[%clk 0:02:43]}  Bg7 {[%clk 0:02:55]} 5. d5 {[%clk 0:02:43]}  Ne5 {[%clk 0:02:54]} 6. Nxe5 {[%clk 0:02:42]}  dxe5 {[%clk 0:02:53]} 7. Be3 {[%clk 0:02:40]}  Nf6 {[%clk 0:02:46]} 8. f3 {[%clk 0:02:40]}  O-O {[%clk 0:02:42]} 9. Qd2 {[%clk 0:02:39]}  e6 {[%clk 0:02:40]} 10. O-O-O {[%clk 0:02:33]}  exd5 {[%clk 0:02:36]} 11. exd5 {[%clk 0:02:25]}  c6 {[%clk 0:02:17]} 12. d6 {[%clk 0:01:55]}  Be6 {[%clk 0:02:15]} 13. h4 {[%clk 0:01:54]}  Qa5 {[%clk 0:02:11]} 14. Bh6 {[%clk 0:01:40]}  Nd5 {[%clk 0:01:59]} 15. Nxd5 {[%clk 0:01:26]}  Qxd2+ {[%clk 0:01:58]} 16. Bxd2 {[%clk 0:01:27]}  cxd5 {[%clk 0:01:53]} 17. Bb4 {[%clk 0:01:00]}  Rfd8 {[%clk 0:01:48]} 18. h5 {[%clk 0:00:50]}  g5 {[%clk 0:01:36]} 19. g3 {[%clk 0:00:38]}  Bf8 {[%clk 0:01:34]} 20. Re1 {[%clk 0:00:38]}  f6 {[%clk 0:01:32]} 21. f4 {[%clk 0:00:38]}  gxf4 {[%clk 0:01:26]} 22. gxf4 {[%clk 0:00:39]}  e4 {[%clk 0:01:15]} 23. Rg1+ {[%clk 0:00:27]}  Kf7 {[%clk 0:01:00]} 24. c4 {[%clk 0:00:23]}  Bxd6 {[%clk 0:00:51]} 25. Bxd6 {[%clk 0:00:24]}  Rxd6 {[%clk 0:00:52]} 26. cxd5 {[%clk 0:00:23]}  Bxd5 {[%clk 0:00:53]} 27. Kb1 {[%clk 0:00:22]}  Rg8 {[%clk 0:00:38]} 28. Rxg8 {[%clk 0:00:20]}  Kxg8 {[%clk 0:00:39]} 29. Bh3 {[%clk 0:00:21]}  Be6 {[%clk 0:00:22]} 30. f5 {[%clk 0:00:18]}  Bd7 {[%clk 0:00:13]} 31. Rxe4 {[%clk 0:00:16]}  Kf7 {[%clk 0:00:14]} 32. h6 {[%clk 0:00:16]}  Rd2 {[%clk 0:00:11]} 33. Re3 {[%clk 0:00:13]}  Bc6 {[%clk 0:00:12]} 34. Rg3 {[%clk 0:00:12]}  Be4+ {[%clk 0:00:11]} 35. Kc1 {[%clk 0:00:13]}  Rc2+ {[%clk 0:00:11]} 36. Kd1 {[%clk 0:00:13]}  Rxb2 {[%clk 0:00:12]} 37. Rg7+ {[%clk 0:00:14]}  Ke8 {[%clk 0:00:12]} 38. Rxh7 {[%clk 0:00:14]}  Rh2 {[%clk 0:00:13]} 39. Bg4 {[%clk 0:00:13]}  Rh4 {[%clk 0:00:10]} 40. Rg7 {[%clk 0:00:13]}  Rxh6 {[%clk 0:00:08]} 41. Kd2 {[%clk 0:00:13]}  Rh2+ {[%clk 0:00:08]} 42. Ke3 {[%clk 0:00:14]}  Bc6 {[%clk 0:00:07]} 43. Rg6 {[%clk 0:00:12]}  Ke7 {[%clk 0:00:07]} 44. Rg7+ {[%clk 0:00:12]}  Kd6 {[%clk 0:00:08]} 45. Rf7 {[%clk 0:00:12]}  Ke5 {[%clk 0:00:07]} 46. Re7+ {[%clk 0:00:12]}  Kd6 {[%clk 0:00:08]} 47. Re6+ {[%clk 0:00:13]}  Kc5 {[%clk 0:00:08]} 48. Rxf6 {[%clk 0:00:14]}  Rxa2 {[%clk 0:00:08]} 49. Re6 {[%clk 0:00:13]}  Ra1 {[%clk 0:00:07]} 50. Kf4 {[%clk 0:00:12]}  Rf1+ {[%clk 0:00:07]} 51. Kg5 {[%clk 0:00:13]}  a5 {[%clk 0:00:07]} 52. f6 {[%clk 0:00:13]}  a4 {[%clk 0:00:08]} 53. Re5+ {[%clk 0:00:13]}  Kd6 {[%clk 0:00:07]} 54. Re6+ {[%clk 0:00:13]}  Kc7 {[%clk 0:00:08]} 55. Re7+ {[%clk 0:00:13]}  Kd8 {[%clk 0:00:08]} 56. Re3 {[%clk 0:00:12]}  b5 {[%clk 0:00:06]} 57. Bf5 {[%clk 0:00:13]}  Bd5 {[%clk 0:00:06]} 58. Rd3 {[%clk 0:00:13]}  b4 {[%clk 0:00:03]} 59. Rxd5+ {[%clk 0:00:13]}  Kc7 {[%clk 0:00:04]} 60. f7 {[%clk 0:00:13]}  Kc6 {[%clk 0:00:02]} 61. Rd3 {[%clk 0:00:12]}  Rg1+ {[%clk 0:00:02]} 62. Kf6 {[%clk 0:00:12]}  Rh1 {[%clk 0:00:00]} 63. f8=Q {[%clk 0:00:13]} 1-0


[Site "https://www.chess.com"]

[Event "Titled Tuesday Blitz July 25 Late 2023"]
[White "Andrews, Todd"]
[Black "ElDivis"]
[WhiteFideId "2012456"]
[WhiteElo "2373"]
[BlackElo "2536"]
[Result "0-1"]
[Round "6"]
[TimeControl "180+2"]
[Date "2023.07.25"]
[WhiteClock "0:01:11"]
[BlackClock "0:01:14"]
[Board "89"]

1. e4 {[%clk 0:03:00]}  c5 {[%clk 0:02:59]} 2. Nf3 {[%clk 0:03:00]}  d6 {[%clk 0:03:00]} 3. d4 {[%clk 0:03:00]}  cxd4 {[%clk 0:03:01]} 4. Nxd4 {[%clk 0:03:01]}  Nf6 {[%clk 0:03:01]} 5. Nc3 {[%clk 0:03:01]}  g6 {[%clk 0:03:02]} 6. Bg5 {[%clk 0:02:59]}  Bg7 {[%clk 0:03:02]} 7. Bb5+ {[%clk 0:03:00]}  Nbd7 {[%clk 0:02:58]} 8. Qe2 {[%clk 0:03:01]}  Qa5 {[%clk 0:02:56]} 9. Nb3 {[%clk 0:03:00]}  Qd8 {[%clk 0:02:44]} 10. O-O-O {[%clk 0:02:56]}  O-O {[%clk 0:02:43]} 11. f4 {[%clk 0:02:53]}  a6 {[%clk 0:02:43]} 12. Bxd7 {[%clk 0:02:46]}  Bxd7 {[%clk 0:02:38]} 13. Bxf6 {[%clk 0:02:39]}  Bxf6 {[%clk 0:02:37]} 14. e5 {[%clk 0:02:39]}  Bg7 {[%clk 0:02:17]} 15. Ne4 {[%clk 0:02:18]}  Bc6 {[%clk 0:02:07]} 16. exd6 {[%clk 0:02:11]}  exd6 {[%clk 0:02:08]} 17. Nxd6 {[%clk 0:02:08]}  Qf6 {[%clk 0:02:07]} 18. Rd4 {[%clk 0:01:44]}  Rad8 {[%clk 0:01:58]} 19. Rhd1 {[%clk 0:01:25]}  Rxd6 {[%clk 0:01:47]} 20. Rxd6 {[%clk 0:01:25]}  Qxb2+ {[%clk 0:01:48]} 21. Kd2 {[%clk 0:01:26]}  Bc3+ {[%clk 0:01:40]} 22. Ke3 {[%clk 0:01:26]}  Re8+ {[%clk 0:01:39]} 23. Kf2 {[%clk 0:01:21]}  Rxe2+ {[%clk 0:01:38]} 24. Kxe2 {[%clk 0:01:22]}  Qxc2+ {[%clk 0:01:34]} 25. Ke3 {[%clk 0:01:22]}  Qxg2 {[%clk 0:01:27]} 26. Nd4 {[%clk 0:01:15]}  Qe4+ {[%clk 0:01:17]} 27. Kf2 {[%clk 0:01:14]}  Qxf4+ {[%clk 0:01:16]} 28. Ke2 {[%clk 0:01:11]}  Qxd6 {[%clk 0:01:14]} 0-1


[Site "https://www.chess.com"]

[Event "Titled Tuesday Blitz July 25 Late 2023"]
[White "Duarte, Leonardo"]
[Black "Benedetti, Julio"]
[WhiteFideId "110582"]
[BlackFideId "172545"]
[WhiteElo "2357"]
[BlackElo "2512"]
[Result "0-1"]
[Round "6"]
[TimeControl "180+2"]
[Date "2023.07.25"]
[WhiteClock "0:00:00"]
[BlackClock "0:00:05"]
[Board "90"]

1. e4 {[%clk 0:03:00]}  c5 {[%clk 0:02:59]} 2. Nf3 {[%clk 0:03:00]}  d6 {[%clk 0:03:00]} 3. d4 {[%clk 0:02:57]}  cxd4 {[%clk 0:03:01]} 4. Nxd4 {[%clk 0:02:58]}  Nf6 {[%clk 0:03:01]} 5. Nc3 {[%clk 0:02:58]}  a6 {[%clk 0:03:01]} 6. f3 {[%clk 0:02:59]}  e5 {[%clk 0:03:01]} 7. Nb3 {[%clk 0:02:59]}  Be7 {[%clk 0:03:02]} 8. Be3 {[%clk 0:02:56]}  h5 {[%clk 0:03:02]} 9. Nd5 {[%clk 0:02:48]}  Nxd5 {[%clk 0:03:00]} 10. exd5 {[%clk 0:02:48]}  Bf5 {[%clk 0:02:41]} 11. Bd3 {[%clk 0:02:48]}  Qd7 {[%clk 0:02:35]} 12. Qd2 {[%clk 0:02:39]}  b5 {[%clk 0:02:31]} 13. O-O-O {[%clk 0:02:33]}  g6 {[%clk 0:02:26]} 14. h3 {[%clk 0:02:19]}  Bxd3 {[%clk 0:02:18]} 15. Qxd3 {[%clk 0:02:18]}  a5 {[%clk 0:02:18]} 16. Kb1 {[%clk 0:02:16]}  a4 {[%clk 0:02:14]} 17. Nc1 {[%clk 0:02:16]}  Na6 {[%clk 0:02:15]} 18. g4 {[%clk 0:02:15]}  Rc8 {[%clk 0:02:05]} 19. Qd2 {[%clk 0:02:05]}  b4 {[%clk 0:01:38]} 20. f4 {[%clk 0:02:05]}  hxg4 {[%clk 0:00:49]} 21. hxg4 {[%clk 0:02:06]}  Rxh1 {[%clk 0:00:49]} 22. Rxh1 {[%clk 0:02:05]}  Qxg4 {[%clk 0:00:49]} 23. fxe5 {[%clk 0:01:53]}  dxe5 {[%clk 0:00:37]} 24. d6 {[%clk 0:01:53]}  Bf6 {[%clk 0:00:37]} 25. Nd3 {[%clk 0:01:21]}  b3 {[%clk 0:00:31]} 26. cxb3 {[%clk 0:01:14]}  axb3 {[%clk 0:00:32]} 27. axb3 {[%clk 0:01:14]}  Qe4 {[%clk 0:00:24]} 28. d7+ {[%clk 0:01:05]}  Kxd7 {[%clk 0:00:23]} 29. Rf1 {[%clk 0:01:02]}  Ke7 {[%clk 0:00:17]} 30. Re1 {[%clk 0:00:58]}  Qf5 {[%clk 0:00:09]} 31. Ka1 {[%clk 0:00:52]}  Ra8 {[%clk 0:00:08]} 32. Kb1 {[%clk 0:00:44]}  Ke8 {[%clk 0:00:06]} 33. Rd1 {[%clk 0:00:42]}  Rd8 {[%clk 0:00:06]} 34. Qc3 {[%clk 0:00:39]}  Rc8 {[%clk 0:00:02]} 35. Qa5 {[%clk 0:00:36]}  Nc7 {[%clk 0:00:01]} 36. Qc5 {[%clk 0:00:25]}  Na6 {[%clk 0:00:01]} 37. Qb5+ {[%clk 0:00:25]}  Kf8 {[%clk 0:00:01]} 38. Qxa6 {[%clk 0:00:25]}  Kg7 {[%clk 0:00:01]} 39. Qb5 {[%clk 0:00:19]}  Rd8 {[%clk 0:00:02]} 40. Ka2 {[%clk 0:00:17]}  Ra8+ {[%clk 0:00:02]} 41. Kb1 {[%clk 0:00:16]}  Rd8 {[%clk 0:00:02]} 42. Qc4 {[%clk 0:00:17]}  Qf3 {[%clk 0:00:03]} 43. Bb6 {[%clk 0:00:15]}  Qxd1+ {[%clk 0:00:03]} 44. Ka2 {[%clk 0:00:14]}  Rxd3 {[%clk 0:00:03]} 45. Bc5 {[%clk 0:00:11]}  Rd7 {[%clk 0:00:03]} 46. Qb5 {[%clk 0:00:10]}  Qd5 {[%clk 0:00:04]} 47. Qb6 {[%clk 0:00:04]}  e4 {[%clk 0:00:04]} 48. Bf8+ {[%clk 0:00:02]}  Kxf8 {[%clk 0:00:04]} 49. Qxf6 {[%clk 0:00:03]}  Qa5+ {[%clk 0:00:04]} 50. Kb1 {[%clk 0:00:00]}  Rd1+ {[%clk 0:00:05]} 0-1


[Site "https://www.chess.com"]

[Event "Titled Tuesday Blitz July 25 Late 2023"]
[White "Senft, Sean"]
[Black "O`Gorman, Tom"]
[WhiteFideId "2044960"]
[BlackFideId "2508249"]
[WhiteElo "2323"]
[BlackElo "2505"]
[Result "0-1"]
[Round "6"]
[TimeControl "180+2"]
[Date "2023.07.25"]
[WhiteClock "0:02:26"]
[BlackClock "0:02:19"]
[Board "93"]

1. d4 {[%clk 0:03:00]}  Nf6 {[%clk 0:02:54]} 2. c4 {[%clk 0:03:00]}  e5 {[%clk 0:02:52]} 3. dxe5 {[%clk 0:03:00]}  Ng4 {[%clk 0:02:51]} 4. e4 {[%clk 0:03:00]}  Nxe5 {[%clk 0:02:50]} 5. f4 {[%clk 0:03:00]}  Ng6 {[%clk 0:02:50]} 6. Be3 {[%clk 0:02:59]}  Nc6 {[%clk 0:02:47]} 7. Nc3 {[%clk 0:02:59]}  Bb4 {[%clk 0:02:46]} 8. Nf3 {[%clk 0:02:58]}  d6 {[%clk 0:02:45]} 9. Qc2 {[%clk 0:02:57]}  O-O {[%clk 0:02:43]} 10. Bd3 {[%clk 0:02:57]}  Re8 {[%clk 0:02:42]} 11. O-O {[%clk 0:02:56]}  Bg4 {[%clk 0:02:39]} 12. Nd5 {[%clk 0:02:55]}  Bxf3 {[%clk 0:02:32]} 13. Rxf3 {[%clk 0:02:54]}  Bc5 {[%clk 0:02:32]} 14. Bxc5 {[%clk 0:02:53]}  dxc5 {[%clk 0:02:33]} 15. e5 {[%clk 0:02:47]}  Nd4 {[%clk 0:02:32]} 16. Qf2 {[%clk 0:02:45]}  c6 {[%clk 0:02:31]} 17. Nc3 {[%clk 0:02:35]}  Nxf3+ {[%clk 0:02:31]} 18. Qxf3 {[%clk 0:02:36]}  Qd4+ {[%clk 0:02:31]} 19. Kh1 {[%clk 0:02:35]}  Qxf4 {[%clk 0:02:30]} 20. Qh3 {[%clk 0:02:30]}  Qxe5 {[%clk 0:02:25]} 21. Rf1 {[%clk 0:02:30]}  Rad8 {[%clk 0:02:24]} 22. Bxg6 {[%clk 0:02:26]}  hxg6 {[%clk 0:02:24]} 23. Qf3 {[%clk 0:02:27]}  Qf6 {[%clk 0:02:20]} 24. Qe2 {[%clk 0:02:26]}  Rxe2 {[%clk 0:02:19]} 0-1


[Site "https://www.chess.com"]

[Event "Titled Tuesday Blitz July 25 Late 2023"]
[White "Santos, Rafael Ventura Dos"]
[Black "Tikhonov, Viacheslav"]
[WhiteFideId "2122227"]
[BlackFideId "44196407"]
[WhiteElo "2312"]
[BlackElo "2505"]
[Result "1-0"]
[Round "6"]
[TimeControl "180+2"]
[Date "2023.07.25"]
[WhiteClock "0:02:40"]
[BlackClock "0:01:51"]
[Board "94"]

1. e4 {[%clk 0:03:00]}  c6 {[%clk 0:02:59]} 2. d4 {[%clk 0:03:00]}  d5 {[%clk 0:03:00]} 3. e5 {[%clk 0:03:01]}  Bf5 {[%clk 0:02:59]} 4. h4 {[%clk 0:03:01]}  h5 {[%clk 0:02:59]} 5. Bg5 {[%clk 0:03:01]}  Qa5+ {[%clk 0:02:55]} 6. Nd2 {[%clk 0:03:01]}  e6 {[%clk 0:02:53]} 7. c3 {[%clk 0:03:00]}  c5 {[%clk 0:02:45]} 8. dxc5 {[%clk 0:02:59]}  Nc6 {[%clk 0:02:43]} 9. b4 {[%clk 0:02:58]}  Qc7 {[%clk 0:02:43]} 10. Ngf3 {[%clk 0:02:50]}  Nxe5 {[%clk 0:02:43]} 11. Nxe5 {[%clk 0:02:44]}  Qxe5+ {[%clk 0:02:44]} 12. Be2 {[%clk 0:02:40]}  Qxc3 {[%clk 0:02:40]} 13. Qa4+ {[%clk 0:02:40]}  b5 {[%clk 0:01:51]} 14. Qxb5# {[%clk 0:02:40]} 1-0


[Site "https://www.chess.com"]

[Event "Titled Tuesday Blitz July 25 Late 2023"]
[White "Shuvalova, Polina"]
[Black "Dwilewicz, Katarzyna"]
[WhiteFideId "24171760"]
[BlackFideId "1148486"]
[WhiteElo "2623"]
[BlackElo "2402"]
[Result "1-0"]
[Round "6"]
[TimeControl "180+2"]
[Date "2023.07.25"]
[WhiteClock "0:01:33"]
[BlackClock "0:00:18"]
[Board "97"]

1. a3 {[%clk 0:03:00]}  e5 {[%clk 0:02:56]} 2. b4 {[%clk 0:03:01]}  d5 {[%clk 0:02:56]} 3. Bb2 {[%clk 0:03:01]}  Bd6 {[%clk 0:02:56]} 4. Nf3 {[%clk 0:02:59]}  Qe7 {[%clk 0:02:55]} 5. d3 {[%clk 0:02:58]}  Nf6 {[%clk 0:02:55]} 6. Nbd2 {[%clk 0:02:58]}  e4 {[%clk 0:02:51]} 7. Nd4 {[%clk 0:02:57]}  O-O {[%clk 0:02:47]} 8. e3 {[%clk 0:02:56]}  a6 {[%clk 0:02:42]} 9. Be2 {[%clk 0:02:55]}  Re8 {[%clk 0:02:35]} 10. dxe4 {[%clk 0:02:54]}  dxe4 {[%clk 0:02:34]} 11. c4 {[%clk 0:02:54]}  c6 {[%clk 0:02:29]} 12. c5 {[%clk 0:02:53]}  Bc7 {[%clk 0:02:25]} 13. Nc4 {[%clk 0:02:52]}  Nd5 {[%clk 0:02:08]} 14. Qc2 {[%clk 0:02:48]}  Qg5 {[%clk 0:02:00]} 15. g3 {[%clk 0:02:38]}  Bg4 {[%clk 0:01:51]} 16. h4 {[%clk 0:02:37]}  Qh5 {[%clk 0:01:51]} 17. Bxg4 {[%clk 0:02:29]}  Qxg4 {[%clk 0:01:51]} 18. Qe2 {[%clk 0:02:28]}  Qxe2+ {[%clk 0:01:43]} 19. Kxe2 {[%clk 0:02:28]}  Nd7 {[%clk 0:01:43]} 20. Nf5 {[%clk 0:02:27]}  f6 {[%clk 0:01:37]} 21. Ncd6 {[%clk 0:02:23]}  Red8 {[%clk 0:01:27]} 22. Nxb7 {[%clk 0:02:22]}  Rdb8 {[%clk 0:01:27]} 23. Nbd6 {[%clk 0:02:21]}  a5 {[%clk 0:01:27]} 24. Bd4 {[%clk 0:02:05]}  axb4 {[%clk 0:01:27]} 25. axb4 {[%clk 0:02:04]}  Nxb4 {[%clk 0:01:20]} 26. Rhb1 {[%clk 0:01:57]}  Rxa1 {[%clk 0:01:18]} 27. Rxa1 {[%clk 0:01:56]}  Nc2 {[%clk 0:01:14]} 28. Ra7 {[%clk 0:01:54]}  Nxd4+ {[%clk 0:01:14]} 29. exd4 {[%clk 0:01:54]}  Bxd6 {[%clk 0:01:11]} 30. cxd6 {[%clk 0:01:44]}  Nb6 {[%clk 0:01:00]} 31. Ne7+ {[%clk 0:01:35]}  Kf8 {[%clk 0:00:59]} 32. Nxc6 {[%clk 0:01:36]}  Rc8 {[%clk 0:00:55]} 33. d5 {[%clk 0:01:34]}  Nxd5 {[%clk 0:00:18]} 34. d7 {[%clk 0:01:33]} 1-0


[Site "https://www.chess.com"]

[Event "Titled Tuesday Blitz July 25 Late 2023"]
[White "Aggelis, Nikolaos"]
[Black "Davidson, Kevin"]
[WhiteFideId "4213220"]
[BlackFideId "2056810"]
[WhiteElo "2602"]
[BlackElo "2391"]
[Result "1-0"]
[Round "6"]
[TimeControl "180+2"]
[Date "2023.07.25"]
[WhiteClock "0:00:45"]
[BlackClock "0:00:00"]
[Board "98"]

1. c4 {[%clk 0:03:00]}  Nf6 {[%clk 0:02:52]} 2. Nc3 {[%clk 0:02:59]}  g6 {[%clk 0:02:52]} 3. g3 {[%clk 0:02:58]}  Bg7 {[%clk 0:02:52]} 4. Bg2 {[%clk 0:02:59]}  d6 {[%clk 0:02:53]} 5. d3 {[%clk 0:02:55]}  O-O {[%clk 0:02:53]} 6. e3 {[%clk 0:02:56]}  e5 {[%clk 0:02:52]} 7. Nge2 {[%clk 0:02:56]}  Nc6 {[%clk 0:02:52]} 8. O-O {[%clk 0:02:57]}  Be6 {[%clk 0:02:42]} 9. Rb1 {[%clk 0:02:57]}  a5 {[%clk 0:02:41]} 10. a3 {[%clk 0:02:57]}  Qd7 {[%clk 0:02:41]} 11. b4 {[%clk 0:02:57]}  axb4 {[%clk 0:02:41]} 12. axb4 {[%clk 0:02:57]}  Bh3 {[%clk 0:02:42]} 13. b5 {[%clk 0:02:57]}  Bxg2 {[%clk 0:02:42]} 14. Kxg2 {[%clk 0:02:56]}  Ne7 {[%clk 0:02:33]} 15. Bb2 {[%clk 0:02:49]}  d5 {[%clk 0:02:28]} 16. Nxd5 {[%clk 0:02:44]}  Nfxd5 {[%clk 0:02:08]} 17. cxd5 {[%clk 0:02:45]}  Qxd5+ {[%clk 0:01:59]} 18. Kg1 {[%clk 0:02:21]}  Rfd8 {[%clk 0:01:50]} 19. d4 {[%clk 0:02:18]}  exd4 {[%clk 0:01:14]} 20. Bxd4 {[%clk 0:01:48]}  Bxd4 {[%clk 0:01:08]} 21. Qxd4 {[%clk 0:01:46]}  Ra2 {[%clk 0:00:48]} 22. Qxd5 {[%clk 0:01:32]}  Nxd5 {[%clk 0:00:49]} 23. Nd4 {[%clk 0:01:30]}  Nc3 {[%clk 0:00:39]} 24. Rbc1 {[%clk 0:01:24]}  Rxd4 {[%clk 0:00:36]} 25. exd4 {[%clk 0:01:23]}  Ne2+ {[%clk 0:00:35]} 26. Kg2 {[%clk 0:01:24]}  Nxc1 {[%clk 0:00:35]} 27. Rxc1 {[%clk 0:01:25]}  Rb2 {[%clk 0:00:30]} 28. Rxc7 {[%clk 0:01:24]}  Rxb5 {[%clk 0:00:30]} 29. Kf3 {[%clk 0:01:18]}  Rf5+ {[%clk 0:00:24]} 30. Ke3 {[%clk 0:01:15]}  b5 {[%clk 0:00:21]} 31. Rb7 {[%clk 0:01:09]}  h5 {[%clk 0:00:20]} 32. f4 {[%clk 0:01:05]}  Kg7 {[%clk 0:00:14]} 33. Ke4 {[%clk 0:01:05]}  Kf6 {[%clk 0:00:12]} 34. d5 {[%clk 0:00:59]}  Kg7 {[%clk 0:00:04]} 35. Rxb5 {[%clk 0:00:57]}  Rf6 {[%clk 0:00:03]} 36. Rb7 {[%clk 0:00:51]}  Ra6 {[%clk 0:00:02]} 37. Rb2 {[%clk 0:00:46]}  Kf6 {[%clk 0:00:00]} 38. Rc2 {[%clk 0:00:45]} 1-0


[Site "https://www.chess.com"]

[Event "Titled Tuesday Blitz July 25 Late 2023"]
[White "Bueno, Alfeu Junior Varela"]
[Black "Pinheiro, Iung Alicio de O."]
[WhiteFideId "2108879"]
[BlackFideId "2104350"]
[WhiteElo "2391"]
[BlackElo "2599"]
[Result "0-1"]
[Round "6"]
[TimeControl "180+2"]
[Date "2023.07.25"]
[WhiteClock "0:00:03"]
[BlackClock "0:00:12"]
[Board "99"]

1. e4 {[%clk 0:02:55]}  c5 {[%clk 0:02:57]} 2. Nc3 {[%clk 0:02:55]}  Nc6 {[%clk 0:02:52]} 3. f4 {[%clk 0:02:55]}  e6 {[%clk 0:02:45]} 4. Bb5 {[%clk 0:02:53]}  Nge7 {[%clk 0:02:43]} 5. Nf3 {[%clk 0:02:51]}  a6 {[%clk 0:02:43]} 6. Bxc6 {[%clk 0:02:51]}  Nxc6 {[%clk 0:02:44]} 7. d3 {[%clk 0:02:52]}  Be7 {[%clk 0:02:39]} 8. O-O {[%clk 0:02:50]}  O-O {[%clk 0:02:38]} 9. Qe1 {[%clk 0:02:49]}  d5 {[%clk 0:02:34]} 10. Qg3 {[%clk 0:02:47]}  Kh8 {[%clk 0:02:33]} 11. Bd2 {[%clk 0:02:40]}  b5 {[%clk 0:02:31]} 12. Rae1 {[%clk 0:02:39]}  b4 {[%clk 0:02:22]} 13. exd5 {[%clk 0:02:36]}  bxc3 {[%clk 0:02:15]} 14. Bxc3 {[%clk 0:02:35]}  Nd4 {[%clk 0:02:15]} 15. dxe6 {[%clk 0:01:58]}  Bxe6 {[%clk 0:02:10]} 16. Ng5 {[%clk 0:01:49]}  Bf6 {[%clk 0:01:53]} 17. Ne4 {[%clk 0:01:29]}  Rc8 {[%clk 0:01:46]} 18. f5 {[%clk 0:01:03]}  Bd5 {[%clk 0:01:23]} 19. Rf4 {[%clk 0:00:56]}  Be5 {[%clk 0:01:16]} 20. f6 {[%clk 0:00:56]}  gxf6 {[%clk 0:01:00]} 21. Qh4 {[%clk 0:00:31]}  Rg8 {[%clk 0:00:30]} 22. Rxf6 {[%clk 0:00:10]}  Bxe4 {[%clk 0:00:15]} 23. Rxe4 {[%clk 0:00:04]}  Qxf6 {[%clk 0:00:14]} 24. Bxd4 {[%clk 0:00:03]}  Bxd4+ {[%clk 0:00:13]} 25. Rxd4 {[%clk 0:00:03]}  Qxd4+ {[%clk 0:00:12]} 0-1


[Site "https://www.chess.com"]